bitfinex/quotes_BTCUSD_20250615
["timestamp","ask_amount","ask_price","bid_price","bid_amount"]
[1749989970599,0.04747687,105310.0,105300.0,0.53501179]
[1749989971626,0.03798128,105310.0,105300.0,0.53501179]
[1749989974139,0.02848578,105310.0,105300.0,0.53501179]
[1749989976006,0.03798137,105310.0,105300.0,0.53501179]
[1749989976424,0.02848578,105310.0,105300.0,0.53501179]
[1749989976599,0.03798128,105310.0,105300.0,0.53501179]
[1749989977196,0.04747687,105310.0,105300.0,0.51811179]
[1749989978365,0.03798128,105310.0,105300.0,0.51811179]
[1749989979574,0.02848578,105310.0,105300.0,0.53491179]
[1749989980591,0.01899037,105310.0,105300.0,0.53491179]
[1749989984570,0.01899037,105310.0,105300.0,0.57275867]
[1749989985175,0.01899037,105310.0,105300.0,0.53491179]
[1749989985379,0.01899037,105310.0,105300.0,0.57275867]
[1749989985579,0.01899037,105310.0,105300.0,0.53491179]
[1749989986308,0.02848578,105310.0,105300.0,0.53491179]
[1749989988277,0.01899037,105310.0,105300.0,0.53491179]
[1749989988685,0.00949514,105310.0,105300.0,0.53491179]
[1749989992924,0.56668692,105320.0,105310.0,0.20890639]
[1749989993133,0.56562237,105320.0,105310.0,0.20890639]
[1749989994148,0.56562237,105320.0,105310.0,0.20890657]
[1749989994529,0.56562237,105320.0,105310.0,0.21840198]
[1749989995764,0.56566983,105320.0,105310.0,0.21840198]
[1749989996627,0.56566983,105320.0,105310.0,0.20890657]
[1749989996834,0.55617523,105320.0,105310.0,0.20890657]
[1749989999650,0.55617523,105320.0,105310.0,0.19941107]
[1749990000049,0.64282958,105320.0,105310.0,0.19941107]
[1749990000457,0.64282958,105320.0,105310.0,0.18991548]
[1749990000664,0.64282958,105320.0,105310.0,0.19941125]
[1749990001965,0.64282958,105320.0,105310.0,0.20890693]
[1749990003134,0.64282958,105320.0,105310.0,0.21840252]
[1749990004793,0.62502958,105320.0,105310.0,0.21840252]
[1749990005579,0.62502958,105320.0,105310.0,0.20890693]
[1749990006532,0.52888036,105320.0,105310.0,0.21840252]
[1749990009692,0.52888036,105320.0,105310.0,0.20890693]
[1749990009900,0.52888036,105320.0,105310.0,0.19941125]
[1749990010104,0.52888036,105320.0,105310.0,0.00949577]
[1749990010718,0.00949559,105310.0,105300.0,0.36725548]
[1749990011799,0.00949559,105310.0,105300.0,0.36825548]
[1749990012424,0.01899109,105310.0,105300.0,0.36825548]
[1749990012869,0.01899091,105310.0,105300.0,0.37025548]
[1749990013077,0.0284865,105310.0,105300.0,0.37025548]
[1749990013290,0.24049302,105310.0,105300.0,0.04828839]
[1749990013510,0.23960229,105310.0,105300.0,0.003]
[1749990014140,0.23960229,105310.0,105300.0,0.001]
[1749990014376,0.37654229,105310.0,105300.0,0.001]
[1749990015217,0.37654229,105310.0,105290.0,0.29201242]
[1749990015455,0.01899253,105300.0,105290.0,0.38825418]
[1749990016570,0.02848902,105300.0,105290.0,0.38825418]
[1749990016906,0.02848839,105300.0,105290.0,0.38825418]
[1749990017114,0.03798488,105300.0,105290.0,0.38825418]
[1749990017319,0.03798488,105300.0,105290.0,0.39025418]
[1749990017531,0.02848839,105300.0,105290.0,0.39025418]
[1749990017748,0.01899199,105300.0,105290.0,0.39025418]
[1749990017958,0.0284883,105300.0,105290.0,0.39025418]
[1749990018563,0.02848821,105300.0,105290.0,0.39025418]
[1749990018966,0.02848821,105300.0,105290.0,0.39125418]
[1749990019178,0.03798461,105300.0,105290.0,0.39125418]
[1749990019412,0.02848821,105300.0,105290.0,0.39125418]
[1749990019626,0.03798452,105300.0,105290.0,0.39125418]
[1749990020978,0.04748092,105300.0,105290.0,0.39125418]
[1749990021183,0.03798452,105300.0,105290.0,0.39125418]
[1749990021467,0.04748101,105300.0,105290.0,0.39125418]
[1749990021674,0.03798452,105300.0,105290.0,0.39125418]
[1749990022526,0.03798452,105300.0,105290.0,0.40897886]
[1749990022746,0.02848821,105300.0,105290.0,0.40897859]
[1749990022966,0.02848821,105300.0,105290.0,0.39125418]
[1749990023331,0.03798452,105300.0,105290.0,0.40897894]
[1749990023541,0.03798452,105300.0,105290.0,0.39125418]
[1749990023742,0.03798452,105300.0,105290.0,0.40897912]
[1749990024419,0.03798452,105300.0,105290.0,0.40897914]
[1749990024625,0.04748092,105300.0,105290.0,0.40897915]
[1749990024831,0.04748092,105300.0,105290.0,0.4089791]
[1749990025038,0.04748092,105300.0,105290.0,0.40897869]
[1749990025247,0.01899199,105300.0,105290.0,0.39125418]
[1749990025468,0.0284883,105300.0,105290.0,0.40897869]
[1749990025675,0.02848821,105300.0,105290.0,0.4089788]
[1749990025888,0.03798452,105300.0,105290.0,0.40897887]
[1749990026095,0.03798452,105300.0,105290.0,0.39125418]
[1749990026300,0.03798452,105300.0,105290.0,0.40897889]
[1749990026712,0.04748101,105300.0,105290.0,0.39125418]
[1749990026897,0.04748092,105300.0,105290.0,0.40897843]
[1749990027120,0.04748092,105300.0,105290.0,0.40897841]
[1749990027322,0.03798452,105300.0,105290.0,0.39125418]
[1749990027525,0.03798452,105300.0,105290.0,0.40897835]
[1749990027728,0.03798452,105300.0,105290.0,0.40897829]
[1749990027934,0.03798452,105300.0,105290.0,0.40897774]
[1749990028142,0.03798452,105300.0,105290.0,0.40897804]
[1749990028555,0.03798452,105300.0,105290.0,0.39125418]
[1749990028970,0.03798452,105300.0,105290.0,0.40897874]
[1749990029170,0.06203409,105300.0,105290.0,0.40897874]
[1749990029794,0.06203409,105300.0,105290.0,0.39125418]
[1749990029994,0.06203409,105300.0,105290.0,0.40897885]
[1749990030195,0.03798452,105300.0,105290.0,0.39125418]
[1749990030400,0.04748092,105300.0,105290.0,0.40897885]
[1749990031227,0.04748092,105300.0,105290.0,0.39125418]
[1749990031612,0.04748092,105300.0,105290.0,0.40897885]
[1749990032278,0.04748092,105300.0,105290.0,0.40897884]
[1749990032561,0.04748092,105300.0,105290.0,0.40897885]
[1749990032769,0.04748092,105300.0,105290.0,0.40897904]
[1749990032977,0.04748092,105300.0,105290.0,0.39125418]
[1749990033184,0.04748092,105300.0,105290.0,0.40897958]
[1749990033386,0.04748092,105300.0,105290.0,0.39125418]
[1749990033821,0.04748092,105300.0,105290.0,0.40897936]
[1749990033978,0.04748092,105300.0,105290.0,0.40901326]
[1749990034434,0.04748092,105300.0,105290.0,0.40900742]
[1749990034633,0.04748092,105300.0,105290.0,0.40900744]
[1749990035002,0.04748092,105300.0,105290.0,0.40900745]
[1749990035227,0.07248013,105300.0,105290.0,0.40900745]
[1749990035439,0.07248013,105300.0,105290.0,0.4090077]
[1749990035900,0.04748092,105300.0,105290.0,0.4090077]
[1749990036118,0.04748155,105300.0,105290.0,0.4090077]
[1749990036342,0.04748155,105300.0,105290.0,0.40900592]
[1749990036558,0.21842299,105300.0,105290.0,0.16332431]
[1749990036776,0.22502659,105300.0,105290.0,0.02075823]
[1749990036979,0.26940037,105300.0,105290.0,0.02076006]
[1749990037200,0.26940037,105300.0,105290.0,0.02076188]
[1749990037401,0.26940037,105300.0,105290.0,0.003]
[1749990037612,0.26940037,105300.0,105290.0,0.002]
[1749990037824,0.26940037,105300.0,105290.0,0.01976283]
[1749990038035,0.26940037,105300.0,105290.0,0.01776283]
[1749990038244,0.01899433,105290.0,105280.0,0.44288859]
[1749990038454,0.01899433,105290.0,105280.0,0.55689363]
[1749990038662,0.01899433,105290.0,105280.0,0.53913035]
[1749990039496,0.02849163,105290.0,105280.0,0.54013035]
[1749990039902,0.05733118,105290.0,105280.0,0.54013035]
[1749990040589,0.03798875,105290.0,105280.0,0.54213035]
[1749990041065,0.06957889,105300.0,105280.0,0.5137478]
[1749990041265,0.25951241,105300.0,105280.0,0.5137478]
[1749990041483,0.01899433,105290.0,105280.0,0.5137478]
[1749990041974,0.01899433,105290.0,105280.0,0.5127478]
[1749990042193,0.01899415,105290.0,105280.0,0.5127478]
[1749990042631,0.02849154,105290.0,105280.0,0.5127478]
[1749990043505,0.03798866,105290.0,105280.0,0.5127478]
[1749990044605,0.06773877,105290.0,105280.0,0.5137478]
[1749990045041,0.06773877,105290.0,105280.0,0.53150998]
[1749990045254,0.06773877,105290.0,105280.0,0.5137478]
[1749990045482,0.06773877,105290.0,105280.0,0.31449392]
[1749990045483,0.25769033,105290.0,105280.0,0.31449392]
[1749990045724,0.24819348,105290.0,105280.0,0.48845023]
[1749990046178,0.24819348,105290.0,105280.0,0.50621264]
[1749990046409,0.23869636,105290.0,105280.0,0.49671453]
[1749990046606,0.23869636,105290.0,105280.0,0.50621294]
[1749990046807,0.23869636,105290.0,105280.0,0.48845014]
[1749990047025,0.23869636,105290.0,105280.0,0.50621301]
[1749990047237,0.23869636,105290.0,105280.0,0.506213]
[1749990047438,0.23869636,105290.0,105280.0,0.351253]
[1749990047647,0.01899469,105290.0,105280.0,0.38674887]
[1749990048487,0.01899469,105290.0,105280.0,0.36898591]
[1749990048900,0.01899469,105290.0,105280.0,0.38672004]
[1749990049539,0.01899433,105290.0,105280.0,0.38672004]
[1749990049749,0.01899433,105290.0,105280.0,0.38672023]
[1749990049957,0.01899433,105290.0,105280.0,0.38671244]
[1749990050165,0.02849172,105290.0,105280.0,0.38671244]
[1749990050568,0.03920967,105290.0,105280.0,0.38671255]
[1749990050773,0.03920967,105290.0,105280.0,0.38671325]
[1749990051167,0.03920967,105290.0,105280.0,0.41509618]
[1749990051914,0.03920967,105290.0,105280.0,0.4150969]
[1749990052126,0.03920967,105290.0,105280.0,0.39736846]
[1749990052254,0.03920967,105290.0,105280.0,0.41509689]
[1749990052459,0.03920967,105290.0,105280.0,0.41509694]
[1749990052931,0.03920967,105290.0,105280.0,0.41509944]
[1749990053088,0.03920967,105290.0,105280.0,0.39736846]
[1749990053324,0.01899379,105290.0,105280.0,0.41509977]
[1749990053493,0.02849109,105290.0,105280.0,0.39736846]
[1749990053695,0.02849109,105290.0,105280.0,0.41509984]
[1749990053935,0.02849109,105290.0,105280.0,0.41510042]
[1749990054138,0.02849109,105290.0,105280.0,0.39736846]
[1749990054590,0.02849109,105290.0,105280.0,0.41510091]
[1749990055094,0.02849109,105290.0,105280.0,0.39736846]
[1749990055336,0.02849109,105290.0,105280.0,0.41510089]
[1749990055577,0.02849109,105290.0,105280.0,0.39736846]
[1749990056055,0.02849109,105290.0,105280.0,0.41509986]
[1749990056304,0.07187693,105290.0,105280.0,0.39736846]
[1749990056820,0.07187693,105290.0,105280.0,0.41509987]
[1749990057365,0.07187693,105290.0,105280.0,0.39736846]
[1749990057629,0.02849109,105290.0,105280.0,0.41509987]
[1749990057865,0.02849109,105290.0,105280.0,0.39736846]
[1749990058133,0.01899379,105290.0,105280.0,0.41509987]
[1749990058409,0.028491,105290.0,105280.0,0.39736846]
[1749990058888,0.028491,105290.0,105280.0,0.41509987]
[1749990059800,0.028491,105290.0,105280.0,0.39736846]
[1749990060018,0.028491,105290.0,105280.0,0.41509987]
[1749990060234,0.028491,105290.0,105280.0,0.39736846]
[1749990060453,0.0379883,105290.0,105280.0,0.41509988]
[1749990060677,0.0379883,105290.0,105280.0,0.39736846]
[1749990060892,0.0379883,105290.0,105280.0,0.41509988]
[1749990061108,0.028491,105290.0,105280.0,0.39736846]
[1749990061347,0.028491,105290.0,105280.0,0.41509987]
[1749990061535,0.0379883,105290.0,105280.0,0.39736846]
[1749990061992,0.04748569,105290.0,105280.0,0.38086846]
[1749990062235,0.09182197,105290.0,105280.0,0.38279987]
[1749990062440,0.09182197,105290.0,105280.0,0.38280024]
[1749990062870,0.26277929,105290.0,105280.0,0.03138255]
[1749990063083,0.26277929,105290.0,105280.0,0.22020261]
[1749990063084,0.27787929,105290.0,105280.0,0.22020261]
[1749990063310,0.27787929,105290.0,105280.0,0.22020282]
[1749990063515,0.27787929,105290.0,105280.0,0.2202032]
[1749990063721,0.27787929,105290.0,105280.0,0.22020311]
[1749990063927,0.27787929,105290.0,105280.0,0.20246799]
[1749990064340,0.62338199,105290.0,105280.0,0.02073513]
[1749990064756,0.62338199,105290.0,105280.0,0.02073683]
[1749990064981,0.62338199,105290.0,105280.0,0.003]
[1749990065183,0.62338199,105290.0,105280.0,0.02072105]
[1749990065388,0.62338199,105290.0,105280.0,0.003]
[1749990065592,0.62338199,105290.0,105280.0,0.02072177]
[1749990065814,0.62338199,105290.0,105280.0,0.01872186]
[1749990066056,0.19946799,105280.0,105270.0,0.20895552]
[1749990066243,0.2798535,105280.0,105270.0,0.22669384]
[1749990066441,0.2798535,105280.0,105270.0,0.20895552]
[1749990067263,0.27990093,105280.0,105270.0,0.1994565]
[1749990067682,0.27990093,105280.0,105270.0,0.20895561]
[1749990068520,0.27990093,105280.0,105270.0,0.22669365]
[1749990068734,0.27990093,105280.0,105270.0,0.22669362]
[1749990068944,0.27990093,105280.0,105270.0,0.22669359]
[1749990069159,0.27990093,105280.0,105270.0,0.20895561]
[1749990069611,0.27990093,105280.0,105270.0,0.22669363]
[1749990069838,0.19951542,105280.0,105270.0,0.25269276]
[1749990070048,0.19951542,105280.0,105270.0,0.26799276]
[1749990070254,0.19951542,105280.0,105270.0,0.26799267]
[1749990070675,0.22374597,105280.0,105270.0,0.25025454]
[1749990071100,0.22374597,105280.0,105270.0,0.26799274]
[1749990071305,0.22374597,105280.0,105270.0,0.25025454]
[1749990071517,0.22374597,105280.0,105270.0,0.26799276]
[1749990071947,0.22374597,105280.0,105270.0,0.26799274]
[1749990072185,0.22374597,105280.0,105270.0,0.26799275]
[1749990072490,0.22374597,105280.0,105270.0,0.25025454]
[1749990072718,0.30505928,105280.0,105270.0,0.22669383]
[1749990072950,0.30505928,105280.0,105270.0,0.22669388]
[1749990073194,0.30505928,105280.0,105270.0,0.21719512]
[1749990073425,0.31086089,105280.0,105270.0,0.01773932]
[1749990073643,0.31086089,105280.0,105270.0,0.01774067]
[1749990073858,0.00949929,105270.0,105260.0,0.44230802]
[1749990074078,0.00949929,105270.0,105260.0,0.53854978]
[1749990074289,0.21848552,105270.0,105260.0,0.39187129]
[1749990074500,0.2518702,105270.0,105260.0,0.36348944]
[1749990074938,0.26136931,105270.0,105260.0,0.35524732]
[1749990075145,0.26136931,105270.0,105260.0,0.37299064]
[1749990075356,0.26136931,105270.0,105260.0,0.37299135]
[1749990075569,0.26136931,105270.0,105260.0,0.37299156]
[1749990075784,0.26136931,105270.0,105260.0,0.37299164]
[1749990076009,0.08088059,105270.0,105260.0,0.36474697]
[1749990076228,0.08088059,105270.0,105260.0,0.38349125]
[1749990076434,0.08088059,105270.0,105260.0,0.38349131]
[1749990076650,0.08088059,105270.0,105260.0,0.38549131]
[1749990076857,0.08088059,105270.0,105260.0,0.36774697]
[1749990077070,0.01899804,105270.0,105260.0,0.38549171]
[1749990077300,0.01899804,105270.0,105260.0,0.36774697]
[1749990077540,0.0284967,105270.0,105260.0,0.38549128]
[1749990077751,0.0284967,105270.0,105260.0,0.38549127]
[1749990077962,0.0284967,105270.0,105260.0,0.38552942]
[1749990078190,0.0379959,105270.0,105260.0,0.38552928]
[1749990078429,0.0379959,105270.0,105260.0,0.36774697]
[1749990078907,0.0379959,105270.0,105260.0,0.38553197]
[1749990079119,0.0379959,105270.0,105260.0,0.36774697]
[1749990079335,0.0379959,105270.0,105260.0,0.38553344]
[1749990079547,0.0379959,105270.0,105260.0,0.36774697]
[1749990079763,0.0379959,105270.0,105260.0,0.38553405]
[1749990080244,0.0379959,105270.0,105260.0,0.36774697]
[1749990080470,0.0379959,105270.0,105260.0,0.38553414]
[1749990081154,0.0379959,105270.0,105260.0,0.36774697]
[1749990081385,0.0379959,105270.0,105260.0,0.38553327]
[1749990081610,0.0379959,105270.0,105260.0,0.38553303]
[1749990081837,0.0379959,105270.0,105260.0,0.38553298]
[1749990082272,0.0379959,105270.0,105260.0,0.38553297]
[1749990083490,0.09787287,105270.0,105260.0,0.36993297]
[1749990083853,0.09787287,105270.0,105260.0,0.35214697]
[1749990084057,0.09787287,105270.0,105260.0,0.36993407]
[1749990084262,0.09787287,105270.0,105260.0,0.38503432]
[1749990084557,0.08837358,105270.0,105260.0,0.38503447]
[1749990084757,0.08837358,105270.0,105260.0,0.3850345]
[1749990084964,0.08837358,105270.0,105260.0,0.36724697]
[1749990085182,0.08837358,105270.0,105260.0,0.38503452]
[1749990085391,0.08837358,105270.0,105260.0,0.38503449]
[1749990085819,0.09787287,105270.0,105260.0,0.38503449]
[1749990086017,0.04749519,105270.0,105260.0,0.36724697]
[1749990086372,0.04749519,105270.0,105260.0,0.38503448]
[1749990086554,0.04749519,105270.0,105260.0,0.36724697]
[1749990086792,0.04749519,105270.0,105260.0,0.38503448]
[1749990087733,0.04749519,105270.0,105260.0,0.36724697]
[1749990088584,0.04749519,105270.0,105260.0,0.3850345]
[1749990089024,0.04749519,105270.0,105260.0,0.36724697]
[1749990089266,0.04749519,105270.0,105260.0,0.38503452]
[1749990089463,0.04749519,105270.0,105260.0,0.38503453]
[1749990089685,0.04749519,105270.0,105260.0,0.36724697]
[1749990089940,0.04749519,105270.0,105260.0,0.38503452]
[1749990090139,0.04749519,105270.0,105260.0,0.36724697]
[1749990090559,0.04749519,105270.0,105260.0,0.38503453]
[1749990091376,0.04749519,105270.0,105260.0,0.36724697]
[1749990091578,0.04749519,105270.0,105260.0,0.38503451]
[1749990091784,0.04749519,105270.0,105260.0,0.38503453]
[1749990092202,0.09882352,105270.0,105260.0,0.38503453]
[1749990092617,0.09882352,105270.0,105260.0,0.36724697]
[1749990092794,0.09882352,105270.0,105260.0,0.38503453]
[1749990093027,0.09882352,105270.0,105260.0,0.36724697]
[1749990093232,0.09882352,105270.0,105260.0,0.38503453]
[1749990093455,0.09882352,105270.0,105260.0,0.36724697]
[1749990093869,0.09882352,105270.0,105260.0,0.38503453]
[1749990094076,0.09882352,105270.0,105260.0,0.36724697]
[1749990094281,0.09882352,105270.0,105260.0,0.38503455]
[1749990094485,0.09882352,105270.0,105260.0,0.36724697]
[1749990094895,0.08932414,105270.0,105260.0,0.38503456]
[1749990095279,0.08932414,105270.0,105260.0,0.36724697]
[1749990095537,0.08932414,105270.0,105260.0,0.38503457]
[1749990095950,0.08932414,105270.0,105260.0,0.38503455]
[1749990096569,0.03799653,105270.0,105260.0,0.38503454]
[1749990096976,0.03799653,105270.0,105260.0,0.38503422]
[1749990097384,0.03799653,105270.0,105260.0,0.38503396]
[1749990097502,0.03799653,105270.0,105260.0,0.38503382]
[1749990097720,0.04749591,105270.0,105260.0,0.38503382]
[1749990097927,0.23748356,105270.0,105260.0,0.35774732]
[1749990098128,0.27931231,105270.0,105260.0,0.37553417]
[1749990098376,0.27931231,105270.0,105260.0,0.40391672]
[1749990098735,0.27931231,105270.0,105260.0,0.38612987]
[1749990098950,0.2698132,105270.0,105260.0,0.3660345]
[1749990099356,0.2698132,105270.0,105260.0,0.39441722]
[1749990099764,0.260314,105270.0,105260.0,0.34253029]
[1749990099960,0.260314,105270.0,105260.0,0.32603492]
[1749990100257,0.260314,105270.0,105260.0,0.32603501]
[1749990100447,0.260314,105270.0,105260.0,0.35441756]
[1749990100782,0.260314,105270.0,105260.0,0.35441758]
[1749990100963,0.25081471,105270.0,105260.0,0.23088853]
[1749990101137,0.25701533,105270.0,105260.0,0.20250598]
[1749990101315,0.25701533,105270.0,105260.0,0.23088853]
[1749990101518,0.24131533,105270.0,105260.0,0.02078743]
[1749990101723,0.24131533,105270.0,105260.0,0.02078832]
[1749990101927,0.24131533,105270.0,105260.0,0.0207885]
[1749990102153,0.24131533,105270.0,105260.0,0.003]
[1749990102353,0.27351533,105270.0,105260.0,0.003]
[1749990102853,0.25701533,105270.0,105260.0,0.02078975]
[1749990103059,0.25701533,105270.0,105260.0,0.003]
[1749990103272,0.25701533,105270.0,105260.0,0.02078994]
[1749990103483,0.0095001,105260.0,105250.0,0.4423026]
[1749990103697,0.0095001,105260.0,105250.0,0.53854436]
[1749990104368,0.01900029,105260.0,105250.0,0.53854436]
[1749990104576,0.04503185,105260.0,105250.0,0.53854436]
[1749990105391,0.05453213,105260.0,105250.0,0.53850436]
[1749990105672,0.05453213,105260.0,105250.0,0.54050436]
[1749990106127,0.05453213,105260.0,105250.0,0.54150436]
[1749990106548,0.25403784,105260.0,105250.0,0.54150436]
[1749990106976,0.25403784,105260.0,105250.0,0.37716381]
[1749990108648,0.25403784,105260.0,105250.0,0.37716399]
[1749990109325,0.04473478,105260.0,105250.0,0.34878144]
[1749990109524,0.23474048,105260.0,105250.0,0.34878144]
[1749990109722,0.23474048,105260.0,105250.0,0.36657133]
[1749990109927,0.23474048,105260.0,105250.0,0.34878144]
[1749990110095,0.23474048,105260.0,105250.0,0.37607227]
[1749990110293,0.24424076,105260.0,105250.0,0.38557237]
[1749990110527,0.24424076,105260.0,105250.0,0.38557219]
[1749990110528,0.05423506,105260.0,105250.0,0.38557219]
[1749990110737,0.00950028,105260.0,105250.0,0.38557219]
[1749990111180,0.00950028,105260.0,105250.0,0.36778227]
[1749990111382,0.00950028,105260.0,105250.0,0.38557186]
[1749990111557,0.01900029,105260.0,105250.0,0.36778227]
[1749990111769,0.01900029,105260.0,105250.0,0.38557183]
[1749990111981,0.02850057,105260.0,105250.0,0.38557193]
[1749990112191,0.02850057,105260.0,105250.0,0.38557194]
[1749990112354,0.07254616,105260.0,105250.0,0.38557221]
[1749990112554,0.07254616,105260.0,105250.0,0.38557222]
[1749990112760,0.07254616,105260.0,105250.0,0.38554764]
[1749990112964,0.07254616,105260.0,105250.0,0.36778227]
[1749990113172,0.07254616,105260.0,105250.0,0.38554755]
[1749990113379,0.06304588,105260.0,105250.0,0.38554755]
[1749990113637,0.06304588,105260.0,105250.0,0.38554756]
[1749990113994,0.06304588,105260.0,105250.0,0.36778227]
[1749990114213,0.06304588,105260.0,105250.0,0.38554716]
[1749990114580,0.00950019,105260.0,105250.0,0.38554711]
[1749990114994,0.00950019,105260.0,105250.0,0.38554713]
[1749990115131,0.00950019,105260.0,105250.0,0.36778227]
[1749990115556,0.01900029,105260.0,105250.0,0.36778227]
[1749990116382,0.01900029,105260.0,105250.0,0.38554725]
[1749990116587,0.01900029,105260.0,105250.0,0.36778227]
[1749990117691,0.06209585,105260.0,105250.0,0.36778227]
[1749990118570,0.06209585,105260.0,105250.0,0.3855472]
[1749990118701,0.06209585,105260.0,105250.0,0.36778227]
[1749990119134,0.06209585,105260.0,105250.0,0.38554721]
[1749990119362,0.25210155,105260.0,105250.0,0.37604666]
[1749990119776,0.25210155,105260.0,105250.0,0.35828172]
[1749990120412,0.25210155,105260.0,105250.0,0.36778227]
[1749990120620,0.06209585,105260.0,105250.0,0.36778227]
[1749990121416,0.06209585,105260.0,105250.0,0.3855489]
[1749990121640,0.06209585,105260.0,105250.0,0.36778227]
[1749990121819,0.06209585,105260.0,105250.0,0.38554878]
[1749990122049,0.06209585,105260.0,105250.0,0.36778227]
[1749990122461,0.06209585,105260.0,105250.0,0.38554877]
[1749990122671,0.06209585,105260.0,105250.0,0.38554891]
[1749990122877,0.06209585,105260.0,105250.0,0.36778227]
[1749990123318,0.06209549,105260.0,105250.0,0.36778227]
[1749990124378,0.06209549,105260.0,105250.0,0.39616482]
[1749990126574,0.07159496,105260.0,105250.0,0.39616482]
[1749990127212,0.06209495,105260.0,105250.0,0.39616482]
[1749990127412,0.07159496,105260.0,105250.0,0.39616482]
[1749990129797,0.06209495,105260.0,105250.0,0.39616482]
[1749990130605,0.07159487,105260.0,105250.0,0.39616482]
[1749990132538,0.06209495,105260.0,105250.0,0.39616482]
[1749990132734,0.07159496,105260.0,105250.0,0.39616482]
[1749990133593,0.06209495,105260.0,105250.0,0.39616482]
[1749990134108,0.07159496,105260.0,105250.0,0.39616482]
[1749990134697,0.07159487,105260.0,105250.0,0.39616482]
[1749990140419,0.06209495,105260.0,105250.0,0.39616482]
[1749990142601,0.07159496,105260.0,105250.0,0.39616482]
[1749990143030,0.06209495,105260.0,105250.0,0.39616482]
[1749990148292,0.07159496,105260.0,105250.0,0.39616482]
[1749990148493,0.06209495,105260.0,105250.0,0.39616482]
[1749990151299,0.07159496,105260.0,105250.0,0.39616482]
[1749990151501,0.06209495,105260.0,105250.0,0.39616482]
[1749990152742,0.07159487,105260.0,105250.0,0.39616482]
[1749990153558,0.01899939,105260.0,105250.0,0.39616482]
[1749990155598,0.02849931,105260.0,105250.0,0.39616482]
[1749990156346,0.02849931,105260.0,105250.0,0.41395421]
[1749990156540,0.01899939,105260.0,105250.0,0.41395421]
[1749990156756,0.01899939,105260.0,105250.0,0.41395491]
[1749990156889,0.01899939,105260.0,105250.0,0.39616482]
[1749990157092,0.06050286,105260.0,105250.0,0.41395491]
[1749990157333,0.07000278,105260.0,105250.0,0.41395482]
[1749990157546,0.07000278,105260.0,105250.0,0.4139549]
[1749990158101,0.07000278,105260.0,105250.0,0.39616482]
[1749990158682,0.07000278,105260.0,105250.0,0.41395481]
[1749990158851,0.07000278,105260.0,105250.0,0.4139548]
[1749990159044,0.07000278,105260.0,105250.0,0.41395479]
[1749990159230,0.07000278,105260.0,105250.0,0.41395461]
[1749990159438,0.07000278,105260.0,105250.0,0.41395418]
[1749990159941,0.07000278,105260.0,105250.0,0.39616482]
[1749990160372,0.07000278,105260.0,105250.0,0.41395479]
[1749990160576,0.07000278,105260.0,105250.0,0.41395482]
[1749990160962,0.07000278,105260.0,105250.0,0.39616482]
[1749990161487,0.07000278,105260.0,105250.0,0.41395479]
[1749990161692,0.07000278,105260.0,105250.0,0.4139544]
[1749990162683,0.64026701,105270.0,105260.0,0.19950589]
[1749990163087,0.64026701,105270.0,105260.0,0.21729518]
[1749990163289,0.64026701,105270.0,105260.0,0.19950589]
[1749990163516,0.64026701,105270.0,105260.0,0.21729518]
[1749990163926,0.64026701,105270.0,105260.0,0.21729516]
[1749990164583,0.64026701,105270.0,105260.0,0.21729518]
[1749990165047,0.64026701,105270.0,105260.0,0.20900599]
[1749990165295,0.64026701,105270.0,105260.0,0.22679528]
[1749990165516,0.64026701,105270.0,105260.0,0.22679529]
[1749990166196,0.64026701,105270.0,105260.0,0.22679528]
[1749990166413,0.64026701,105270.0,105260.0,0.22679529]
[1749990166644,0.64026701,105270.0,105260.0,0.20900599]
[1749990167079,0.64026701,105270.0,105260.0,0.22679485]
[1749990167295,0.64026701,105270.0,105260.0,0.20900599]
[1749990167511,0.64022701,105270.0,105260.0,0.20900599]
[1749990167746,0.64022701,105270.0,105260.0,0.22679485]
[1749990168201,0.64022701,105270.0,105260.0,0.22679486]
[1749990168425,0.64022701,105270.0,105260.0,0.20900599]
[1749990168902,0.64022701,105270.0,105260.0,0.22679486]
[1749990169970,0.64022701,105270.0,105260.0,0.22679391]
[1749990170184,0.64022701,105270.0,105260.0,0.22679392]
[1749990170410,0.64022701,105270.0,105260.0,0.22679393]
[1749990171047,0.64022701,105270.0,105260.0,0.22679422]
[1749990171254,0.64022701,105270.0,105260.0,0.2267944]
[1749990171487,0.64022701,105270.0,105260.0,0.22679402]
[1749990171692,0.64022701,105270.0,105260.0,0.22679403]
[1749990171900,0.64022701,105270.0,105260.0,0.20900599]
[1749990172088,0.64022701,105270.0,105260.0,0.22679398]
[1749990172312,0.64022701,105270.0,105260.0,0.22679396]
[1749990172497,0.64022701,105270.0,105260.0,0.20900599]
[1749990172948,0.64022701,105270.0,105260.0,0.22679392]
[1749990173130,0.64022701,105270.0,105260.0,0.22679391]
[1749990173370,0.64022701,105270.0,105260.0,0.20900599]
[1749990173589,0.64022701,105270.0,105260.0,0.21729383]
[1749990173811,0.64022701,105270.0,105260.0,0.21729369]
[1749990174094,0.64022701,105270.0,105260.0,0.19950589]
[1749990174292,0.64022701,105270.0,105260.0,0.20779328]
[1749990174714,0.64022701,105270.0,105260.0,0.20779298]
[1749990174931,0.64022701,105270.0,105260.0,0.01778728]
[1749990175142,0.03799932,105260.0,105250.0,0.37416282]
[1749990175592,0.03799932,105260.0,105250.0,0.39195034]
[1749990175797,0.03799932,105260.0,105250.0,0.37416282]
[1749990176004,0.03799932,105260.0,105250.0,0.39195015]
[1749990176209,0.03799932,105260.0,105250.0,0.37416282]
[1749990176415,0.03799932,105260.0,105250.0,0.39195012]
[1749990176655,0.04749942,105260.0,105250.0,0.39295012]
[1749990176859,0.04749942,105260.0,105250.0,0.39295031]
[1749990177283,0.04749942,105260.0,105250.0,0.37716282]
[1749990178140,0.04749942,105260.0,105250.0,0.39495068]
[1749990178320,0.04749942,105260.0,105250.0,0.37716282]
[1749990178555,0.08799845,105260.0,105250.0,0.36766236]
[1749990178765,0.04750014,105260.0,105250.0,0.36766236]
[1749990178975,0.04750014,105260.0,105250.0,0.38545013]
[1749990179225,0.23750584,105260.0,105250.0,0.38545049]
[1749990179438,0.23750584,105260.0,105250.0,0.38545046]
[1749990179644,0.22800601,105260.0,105250.0,0.36766272]
[1749990179859,0.22800601,105260.0,105250.0,0.38545044]
[1749990180067,0.24950511,105260.0,105250.0,0.38545125]
[1749990180272,0.20900608,105260.0,105250.0,0.38545127]
[1749990180538,0.20900608,105260.0,105250.0,0.36766326]
[1749990180951,0.20900608,105260.0,105250.0,0.38545141]
[1749990181160,0.20900608,105260.0,105250.0,0.39495316]
[1749990181572,0.20900608,105260.0,105250.0,0.39495347]
[1749990181752,0.20900608,105260.0,105250.0,0.39495367]
[1749990182001,0.20900608,105260.0,105250.0,0.37716408]
[1749990182206,0.20900608,105260.0,105250.0,0.39495363]
[1749990182412,0.24950511,105260.0,105250.0,0.39495363]
[1749990182632,0.20900608,105260.0,105250.0,0.39495363]
[1749990183258,0.20900608,105260.0,105250.0,0.39495365]
[1749990184335,0.20900608,105260.0,105250.0,0.36766326]
[1749990184588,0.19950598,105260.0,105250.0,0.38545303]
[1749990184812,0.19950598,105260.0,105250.0,0.39495376]
[1749990185052,0.19950598,105260.0,105250.0,0.40445449]